bitfinex-derivatives/quotes_BTCF0:USTF0_20250814
["timestamp","ask_amount","ask_price","bid_price","bid_amount"]
[1755190318747,1.14064949,118120.0,118110.0,1.32456527]
[1755190318951,1.14264949,118120.0,118110.0,1.32456527]
[1755190320354,1.14264949,118120.0,118110.0,0.43458636]
[1755190320656,0.48435,118110.0,118100.0,1.07015921]
[1755190320862,0.43814,118110.0,118100.0,0.87048]
[1755190321363,0.48435,118110.0,118100.0,0.87048]
[1755190321562,0.56901325,118110.0,118100.0,0.87048]
[1755190321748,0.5746219,118120.0,118110.0,0.16238]
[1755190321749,0.5736219,118120.0,118110.0,0.16238]
[1755190321956,0.6927719,118120.0,118110.0,0.04511]
[1755190322155,0.6907719,118120.0,118110.0,0.04511]
[1755190322360,0.77544232,118120.0,118110.0,0.04511]
[1755190322664,1.13624232,118120.0,118110.0,0.04511]
[1755190322856,1.13624232,118120.0,118100.0,1.10185]
[1755190322857,1.84640153,118120.0,118100.0,0.04611]
[1755190323056,0.77624232,118120.0,118110.0,0.86996]
[1755190323263,1.48560153,118120.0,118110.0,0.86996]
[1755190323463,1.48560153,118120.0,118110.0,0.91507]
[1755190323651,0.97455775,118120.0,118110.0,0.91507]
[1755190323855,0.97455775,118120.0,118110.0,1.07745]
[1755190323856,0.68758775,118120.0,118110.0,1.07745]
[1755190324050,0.68758775,118120.0,118110.0,1.14544]
[1755190324357,0.93167757,118120.0,118110.0,1.14544]
[1755190324756,0.73436214,118120.0,118110.0,1.14544]
[1755190326259,0.49227232,118120.0,118110.0,1.14544]
[1755190326864,0.64417761,118120.0,118110.0,1.14544]
[1755190327362,0.64756761,118120.0,118110.0,0.91507]
[1755190327560,0.64756761,118120.0,118110.0,0.91343]
[1755190327860,1.03663041,118120.0,118110.0,0.86832]
[1755190328060,1.23410729,118120.0,118110.0,0.86832]
[1755190328252,1.23410729,118120.0,118110.0,1.10589]
[1755190328253,0.64587449,118120.0,118110.0,1.10589]
[1755190328457,0.4939692,118120.0,118110.0,1.10689]
[1755190328663,0.4929692,118120.0,118110.0,1.33726]
[1755190329258,0.40171944,118120.0,118110.0,1.33726]
[1755190330156,0.29549232,118120.0,118110.0,1.33726]
[1755190330366,0.40172867,118120.0,118110.0,1.33626]
[1755190330762,0.29549232,118120.0,118110.0,1.33626]
[1755190331067,0.44739761,118120.0,118110.0,1.33626]
[1755190331961,0.26951083,118120.0,118110.0,1.33626]
[1755190332658,0.11760554,118120.0,118110.0,1.33626]
[1755190333167,0.31508242,118120.0,118110.0,1.33626]
[1755190333561,0.33378509,118120.0,118110.0,1.33726]
[1755190333868,0.33378509,118120.0,118110.0,1.33826]
[1755190334364,0.33378509,118120.0,118110.0,0.91543]
[1755190334568,0.33378509,118120.0,118110.0,1.33826]
[1755190335371,0.44539365,118120.0,118110.0,1.33826]
[1755190336067,0.59712155,118120.0,118110.0,2.04761921]
[1755190336260,0.59712155,118120.0,118110.0,2.40841921]
[1755190336461,0.39964467,118120.0,118110.0,2.40841921]
[1755190337365,0.39964467,118120.0,118110.0,0.83074]
[1755190337560,1.46980388,118120.0,118110.0,0.12534]
[1755190337773,0.90683609,118140.0,118110.0,1.27715]
[1755190337774,0.3608,118140.0,118110.0,1.27715]
[1755190338072,0.3608,118140.0,118120.0,0.3608]
[1755190338073,1.17832856,118140.0,118120.0,0.3608]
[1755190338270,1.26299181,118140.0,118120.0,0.3608]
[1755190338467,1.43229581,118140.0,118120.0,0.3608]
[1755190338864,0.7229366,118140.0,118120.0,0.32953121]
[1755190339167,0.90431419,118130.0,118120.0,0.8694]
[1755190339363,0.90351419,118130.0,118120.0,0.78377429]
[1755190339569,0.71202619,118130.0,118120.0,0.57901858]
[1755190339770,0.79667869,118130.0,118120.0,0.43885297]
[1755190340273,0.4302065,118130.0,118120.0,1.37858218]
[1755190340871,0.49916026,118130.0,118120.0,1.37858218]
[1755190341272,1.1885999,118130.0,118120.0,1.37858218]
[1755190341477,1.1885999,118130.0,118120.0,0.86168297]
[1755190341665,1.1885999,118130.0,118120.0,1.57104218]
[1755190341973,1.1905999,118130.0,118120.0,1.25053505]
[1755190342164,1.1905999,118130.0,118120.0,1.22001057]
[1755190342566,1.1905999,118130.0,118120.0,1.18143101]
[1755190342768,1.1885999,118130.0,118120.0,1.18143101]
[1755190343376,1.1865999,118130.0,118120.0,1.18143101]
[1755190343675,1.38387682,118130.0,118120.0,1.18143101]
[1755190344070,0.69643718,118130.0,118120.0,1.18143101]
[1755190344974,0.88028185,118130.0,118120.0,1.81757966]
[1755190345175,0.70576185,118130.0,118120.0,0.86508]
[1755190345474,0.33316625,118130.0,118120.0,1.62218921]
[1755190345682,0.43873249,118130.0,118120.0,1.05942]
[1755190345873,0.48384249,118130.0,118120.0,1.76877921]
[1755190346066,0.48384249,118130.0,118120.0,1.57443921]
[1755190346271,0.25115,118120.0,118110.0,1.07015921]
[1755190346479,0.57733284,118120.0,118110.0,1.93467921]
[1755190346876,0.66198892,118120.0,118110.0,1.93467921]
[1755190347181,0.68121891,118120.0,118110.0,2.23167921]
[1755190347472,0.68121891,118120.0,118110.0,2.23267921]
[1755190347679,0.48384607,118120.0,118110.0,2.23267921]
[1755190347877,0.48384607,118120.0,118110.0,2.23367921]
[1755190348078,0.48384607,118120.0,118110.0,1.52432]
[1755190348377,0.43873607,118120.0,118110.0,2.23367921]
[1755190348772,0.10388607,118120.0,118110.0,2.23367921]
[1755190348972,0.04344,118160.0,118120.0,0.49134]
[1755190349173,1.2865459,118160.0,118140.0,0.41046]
[1755190349377,0.12716715,118150.0,118140.0,0.24471138]
[1755190349569,0.4037907,118150.0,118140.0,0.04966]
[1755190349775,0.5730707,118150.0,118140.0,0.41046]
[1755190349975,0.5730707,118150.0,118140.0,1.29243921]
[1755190350176,0.74264395,118150.0,118140.0,0.41046]
[1755190350772,0.7438054,118150.0,118140.0,0.41046]
[1755190350973,0.7416654,118150.0,118140.0,0.17262]
[1755190351278,0.81041652,118150.0,118140.0,0.44168]
[1755190351479,0.80941652,118150.0,118140.0,0.44168]
[1755190351681,0.63783003,118150.0,118140.0,0.41385978]
[1755190351882,0.46855003,118150.0,118140.0,0.41385978]
[1755190352271,0.42030003,118150.0,118140.0,0.41385978]
[1755190352480,0.51488758,118150.0,118140.0,1.45646375]
[1755190352790,0.51488758,118150.0,118140.0,1.45726375]
[1755190353083,0.51488758,118150.0,118140.0,1.50692375]
[1755190353579,0.31734003,118150.0,118140.0,1.50635751]
[1755190354370,0.26140281,118160.0,118140.0,2.21571672]
[1755190354675,0.29420323,118160.0,118150.0,2.05645921]
[1755190354870,0.37884498,118160.0,118150.0,1.8954583]
[1755190355077,0.44770681,118160.0,118150.0,1.8954583]
[1755190355378,0.29568473,118160.0,118150.0,1.8954583]
[1755190355578,0.29868473,118160.0,118150.0,2.04773527]
[1755190355971,0.29968473,118160.0,118150.0,2.04773527]
[1755190356175,0.29968473,118160.0,118150.0,1.65824371]
[1755190356370,0.29968473,118160.0,118150.0,1.1432245]
[1755190356576,0.29968473,118160.0,118150.0,1.85258371]
[1755190357177,0.29884603,118160.0,118150.0,1.85258371]
[1755190358281,0.29884603,118160.0,118150.0,1.85358371]
[1755190358282,0.44987644,118160.0,118150.0,1.85358371]
[1755190358877,0.44887644,118160.0,118150.0,1.1442245]
[1755190359080,0.29684603,118160.0,118150.0,1.85358371]
[1755190359786,0.29684603,118160.0,118150.0,1.82603813]
[1755190359985,0.12184603,118160.0,118150.0,1.82683813]
[1755190360293,0.25079961,118160.0,118150.0,1.82683813]
[1755190360590,0.25079961,118160.0,118150.0,1.57019554]
[1755190360591,0.28428623,118160.0,118150.0,1.57019554]
[1755190361081,0.28428623,118160.0,118150.0,1.56939554]
[1755190361284,0.4361075,118160.0,118150.0,1.56939554]
[1755190361586,0.23829209,118160.0,118150.0,1.56939554]
[1755190362888,0.08647082,118160.0,118150.0,1.56939554]
[1755190363590,0.2624699,118170.0,118150.0,1.56939554]
[1755190363793,0.08981371,118170.0,118160.0,1.41490921]
[1755190364192,0.14021052,118170.0,118160.0,1.41490921]
[1755190364394,0.45483541,118200.0,118190.0,0.26906]
[1755190364694,0.77103986,118200.0,118190.0,2.77937921]
[1755190364988,0.74951283,118200.0,118190.0,2.77937921]
[1755190365190,0.55249742,118200.0,118190.0,2.65499921]
[1755190365395,0.65865187,118200.0,118190.0,1.78108]
[1755190365591,0.65865187,118200.0,118190.0,2.66205921]
[1755190365894,0.55249742,118200.0,118190.0,2.66205921]
[1755190366192,0.55249742,118200.0,118190.0,2.56939921]
[1755190366388,0.55449742,118200.0,118190.0,0.92824]
[1755190366592,0.55449742,118200.0,118190.0,1.5786]
[1755190366991,0.55669742,118200.0,118190.0,2.53529921]
[1755190367296,0.55749742,118200.0,118190.0,2.28795921]
[1755190367685,0.55669742,118200.0,118190.0,2.46057921]
[1755190367891,0.55749742,118200.0,118190.0,2.53529921]
[1755190368497,0.59164105,118200.0,118190.0,1.82594]
[1755190368691,0.58864105,118200.0,118190.0,1.82594]
[1755190369095,0.58864105,118200.0,118190.0,1.5786]
[1755190369699,0.58664105,118200.0,118190.0,1.5796]
[1755190370397,0.58664105,118200.0,118190.0,1.75222]
[1755190370597,0.58584105,118200.0,118190.0,1.82694]
[1755190370792,0.58584105,118200.0,118190.0,2.58595921]
[1755190371095,0.11877105,118200.0,118190.0,2.58595921]
[1755190371392,0.19854105,118200.0,118190.0,2.58595921]
[1755190371596,0.43181105,118200.0,118190.0,2.58595921]
[1755190371996,0.43181105,118200.0,118190.0,1.8766]
[1755190372301,0.58584105,118200.0,118190.0,1.8766]
[1755190372496,0.58584105,118200.0,118190.0,2.58595921]
[1755190372690,0.58584105,118200.0,118190.0,2.42580329]
[1755190373195,0.73730979,118200.0,118190.0,1.66662408]
[1755190373395,0.73730979,118200.0,118190.0,1.71628408]
[1755190373592,0.35000979,118200.0,118190.0,2.42564329]
[1755190373795,0.19854105,118200.0,118190.0,2.40530601]
[1755190374300,0.19854105,118200.0,118190.0,2.37776595]
[1755190374500,0.19854105,118200.0,118190.0,2.14997153]
[1755190374800,0.58306105,118200.0,118190.0,1.31623232]
[1755190374994,0.58306105,118200.0,118190.0,1.38676232]
[1755190375896,0.58306105,118200.0,118190.0,0.52892232]
[1755190376101,0.58306105,118200.0,118190.0,1.29767]
[1755190376701,0.94386105,118200.0,118190.0,0.08224]
[1755190376905,1.14088033,118200.0,118190.0,1.12405]
[1755190377398,1.14088033,118200.0,118190.0,1.16921]
[1755190377399,0.78008033,118200.0,118190.0,1.16921]
[1755190377990,0.78008033,118200.0,118190.0,1.53001]
[1755190378603,0.78008033,118200.0,118190.0,2.23936921]
[1755190378795,0.78008033,118200.0,118190.0,2.39975921]
[1755190380194,0.78008033,118200.0,118190.0,1.54299921]
[1755190380394,0.78008033,118200.0,118190.0,1.66277943]
[1755190380596,0.58306105,118200.0,118190.0,1.38882136]
[1755190380893,0.58306105,118200.0,118190.0,1.22866271]
[1755190381096,0.78036986,118200.0,118190.0,1.22866271]
[1755190381402,0.78036986,118200.0,118190.0,0.92434271]
[1755190381903,0.78036986,118200.0,118190.0,0.90400462]
[1755190382596,0.78036986,118200.0,118180.0,1.09649921]
[1755190382597,0.46313,118190.0,118180.0,0.2537]
[1755190382804,0.46313,118180.0,118170.0,0.3608]
[1755190382990,0.46313,118180.0,118170.0,1.21744]
[1755190383205,0.47643026,118180.0,118170.0,1.92679921]
[1755190383499,0.32841907,118180.0,118170.0,1.92679921]
[1755190383897,0.32841907,118180.0,118170.0,1.92879921]
[1755190384102,0.32841907,118180.0,118170.0,1.81439751]
[1755190384601,0.28192907,118180.0,118170.0,1.81439751]
[1755190384793,0.13111026,118180.0,118170.0,1.81439751]
[1755190386004,0.13111026,118180.0,118170.0,1.81539751]
[1755190386193,0.29038026,118180.0,118170.0,1.81539751]
[1755190386398,0.29038026,118180.0,118170.0,1.78785616]
[1755190386595,0.29038026,118180.0,118170.0,1.55905211]
[1755190386801,0.29038026,118180.0,118170.0,1.53124607]
[1755190386999,0.90855026,118180.0,118170.0,1.53124607]
[1755190387204,1.10647221,118180.0,118170.0,1.52924607]
[1755190387405,1.10647221,118180.0,118170.0,1.53024607]
[1755190388305,0.90855026,118180.0,118170.0,1.53024607]
[1755190388500,0.67796026,118180.0,118170.0,0.82088686]
[1755190388809,1.12982994,118180.0,118170.0,0.66072281]
[1755190389506,0.97750882,118180.0,118170.0,0.66072281]
[1755190389710,0.97750882,118180.0,118170.0,0.64038425]
[1755190390405,0.27708,118160.0,118140.0,0.19220091]
[1755190390608,0.04649,118140.0,118130.0,1.88143921]
[1755190390905,0.55974287,118140.0,118130.0,2.73791921]
[1755190391106,0.64436313,118140.0,118130.0,2.75488241]
[1755190391807,0.49191026,118140.0,118130.0,2.75488241]
[1755190392109,0.72250026,118140.0,118130.0,2.03156]
[1755190392404,0.90855026,118140.0,118130.0,0.85948]
[1755190392603,0.90855026,118140.0,118130.0,0.60306475]
[1755190393410,1.10660303,118140.0,118130.0,0.60306475]
[1755190393605,1.10660303,118140.0,118130.0,0.60206475]
[1755190393808,1.10660303,118140.0,118130.0,0.57425098]
[1755190394211,1.10660303,118140.0,118130.0,0.45781072]
[1755190394413,1.79648849,118140.0,118130.0,0.45781072]
[1755190394908,1.79648849,118140.0,118130.0,1.16716993]
[1755190396008,1.43916572,118140.0,118130.0,1.16716993]
[1755190396215,1.18179572,118140.0,118130.0,1.16716993]
[1755190396711,1.18179572,118140.0,118130.0,1.00696836]
[1755190397010,0.44542026,118140.0,118130.0,1.00696836]
[1755190397305,0.44542026,118140.0,118130.0,1.00976836]
[1755190397306,0.59765059,118140.0,118130.0,1.00976836]
[1755190397705,0.23685059,118140.0,118130.0,1.37056836]
[1755190397902,0.08462026,118140.0,118130.0,1.35022631]
[1755190398102,0.08578176,118140.0,118130.0,1.35022631]
[1755190398303,0.08578176,118140.0,118130.0,1.72052231]
[1755190398707,0.40729,118160.0,118130.0,2.48694968]
[1755190398906,0.40729,118160.0,118150.0,0.70935921]
[1755190399211,0.40729,118160.0,118150.0,1.33692578]
[1755190399212,0.49193891,118160.0,118150.0,1.33692578]
[1755190400098,0.49193891,118160.0,118150.0,1.56575921]
[1755190400309,0.49193891,118160.0,118150.0,1.56675921]
[1755190400509,0.49193891,118160.0,118150.0,1.50843848]
[1755190401210,0.49193891,118160.0,118150.0,1.51043848]
[1755190402901,0.59848887,118160.0,118150.0,1.51043848]
[1755190403105,0.55199887,118160.0,118150.0,1.51043848]
[1755190404717,0.59939887,118160.0,118150.0,0.80107927]
[1755190405016,0.78866887,118160.0,118150.0,1.51043848]
[1755190405323,0.91991891,118160.0,118150.0,0.80107927]
[1755190406312,0.91991891,118160.0,118150.0,0.47860065]
[1755190406618,0.91991891,118160.0,118150.0,0.22196454]
[1755190407222,1.11779902,118160.0,118150.0,0.22196454]
[1755190407716,1.11779902,118160.0,118150.0,0.93132375]
[1755190408419,0.91991891,118160.0,118150.0,0.93132375]
[1755190410822,1.04399902,118160.0,118150.0,0.93132375]
[1755190412222,0.84611891,118160.0,118150.0,0.93132375]
[1755190412921,0.91991891,118160.0,118150.0,0.93132375]
[1755190413125,0.91991891,118160.0,118150.0,0.22196454]
[1755190413424,1.11779902,118160.0,118150.0,0.93132375]
[1755190414326,0.95379902,118160.0,118150.0,0.75080448]
[1755190414623,1.11779902,118160.0,118150.0,0.75080448]
[1755190415024,1.11779902,118160.0,118150.0,0.04144527]
[1755190415523,0.47447,118150.0,118140.0,0.85552]
[1755190415719,0.83527,118150.0,118140.0,1.56487921]
[1755190416316,0.84610459,118150.0,118140.0,1.45046116]
[1755190416519,0.91990459,118150.0,118140.0,1.45046116]
[1755190416718,0.91990459,118150.0,118140.0,1.45346116]
[1755190416918,0.91990459,118150.0,118140.0,0.003]
[1755190417123,0.91990459,118150.0,118140.0,0.8604]
[1755190417525,0.91990459,118150.0,118140.0,0.005]
[1755190417725,0.91990459,118150.0,118140.0,0.8574]
[1755190418023,0.91990459,118150.0,118140.0,0.8594]
[1755190418230,0.91990459,118150.0,118140.0,1.56875921]
[1755190418526,0.91990459,118150.0,118140.0,1.56775921]
[1755190419531,0.91990459,118150.0,118140.0,1.56575921]
[1755190419727,1.07321653,118150.0,118140.0,1.56575921]
[1755190420025,1.07321653,118150.0,118140.0,1.56475921]
[1755190420336,0.83441653,118150.0,118140.0,1.56475921]
[1755190420525,0.48223682,118150.0,118140.0,1.58169417]
[1755190420927,0.48223682,118150.0,118140.0,1.58269417]
[1755190421226,0.43483682,118150.0,118140.0,2.29285338]
[1755190421426,0.2825147,118150.0,118140.0,2.29285338]
[1755190421624,0.2825147,118150.0,118140.0,1.94429417]
[1755190421827,0.08463459,118150.0,118140.0,1.94429417]
[1755190422027,0.13203459,118150.0,118140.0,1.94349417]
[1755190422324,0.28435671,118150.0,118140.0,1.94449417]
[1755190422524,0.28435671,118150.0,118140.0,1.76397865]
[1755190422729,0.28435671,118150.0,118140.0,1.76597865]
[1755190423124,0.13203459,118150.0,118140.0,1.94617417]
[1755190423330,0.55910459,118150.0,118140.0,1.94617417]
[1755190423632,0.55910459,118150.0,118140.0,1.94613417]
[1755190424525,0.91990459,118150.0,118140.0,0.004]
[1755190424719,0.91990459,118150.0,118140.0,0.003]
[1755190425131,0.91990459,118150.0,118140.0,0.00032976]
[1755190425732,0.91990459,118150.0,118140.0,0.002]
[1755190425921,0.91990459,118150.0,118140.0,0.003]
[1755190426323,0.44319,118140.0,118130.0,1.45292758]
[1755190426524,0.47447,118140.0,118130.0,1.45292758]
[1755190427032,0.55911175,118140.0,118130.0,1.45292758]
[1755190427629,0.75711806,118140.0,118130.0,1.45292758]
[1755190428131,0.75711806,118140.0,118130.0,1.45392758]
[1755190429427,0.75811806,118140.0,118130.0,1.45392758]
[1755190429937,0.56011175,118140.0,118130.0,1.45392758]
[1755190430825,0.32231175,118140.0,118130.0,1.45392758]
[1755190431027,0.48631175,118140.0,118130.0,1.45392758]
[1755190431227,0.56011175,118140.0,118130.0,1.45392758]
[1755190432231,0.08564175,118140.0,118130.0,1.6545233]
[1755190432430,0.24540631,118150.0,118130.0,2.0784551]
[1755190432630,0.24540631,118150.0,118140.0,1.07015921]
[1755190432826,0.19800631,118150.0,118140.0,1.07095921]
[1755190433027,0.3608,118150.0,118140.0,1.45398467]
[1755190433335,0.08464891,118150.0,118140.0,0.81172196]
[1755190433532,0.08764891,118150.0,118140.0,0.46316275]
[1755190433728,0.08764891,118150.0,118140.0,1.08791876]
[1755190434233,0.08764891,118150.0,118140.0,1.17252446]
[1755190434234,0.08464891,118150.0,118140.0,1.17252446]
[1755190434421,0.08464891,118150.0,118140.0,1.08811876]
[1755190434627,0.13292891,118150.0,118140.0,1.08811876]
[1755190435536,0.13292891,118150.0,118140.0,0.72731876]
[1755190435735,0.08464891,118150.0,118140.0,1.17272446]
[1755190436628,0.08464891,118150.0,118140.0,1.08811876]
[1755190436829,0.13292891,118150.0,118140.0,1.08811876]
[1755190437536,0.13292891,118150.0,118140.0,0.72731876]
[1755190439234,0.28512222,118150.0,118140.0,0.72731876]
[1755190439735,0.28512222,118150.0,118140.0,0.81192446]
[1755190439940,0.23684222,118150.0,118140.0,0.81192446]
[1755190440128,0.6238697,118160.0,118140.0,2.30517367]
[1755190440438,0.75679145,118160.0,118150.0,1.56319921]
[1755190441128,0.39599145,118160.0,118150.0,1.64779781]
[1755190442137,0.28511506,118160.0,118150.0,1.59991719]
[1755190442437,0.13292175,118160.0,118150.0,1.59991719]
[1755190442842,0.28511235,118160.0,118150.0,1.51531859]
[1755190443442,0.28511235,118160.0,118150.0,0.64579231]
[1755190443629,0.13292175,118160.0,118150.0,1.35515152]
[1755190443830,0.55780175,118160.0,118150.0,1.35515152]
[1755190445930,0.08464175,118160.0,118150.0,1.56267921]
[1755190446131,0.29392175,118160.0,118150.0,1.56267921]
[1755190446335,0.13292175,118160.0,118150.0,1.56267921]
[1755190446940,0.28511235,118160.0,118150.0,1.56267921]
[1755190447244,0.28511235,118160.0,118150.0,1.64727781]
[1755190447433,0.28511235,118160.0,118150.0,1.56267921]
[1755190448538,0.13292175,118160.0,118150.0,1.56267921]
[1755190448944,0.13292175,118160.0,118150.0,1.64727781]
[1755190449335,0.13292175,118160.0,118150.0,1.56267921]
[1755190450539,0.13292175,118160.0,118150.0,1.64727781]
[1755190450742,0.13292175,118160.0,118150.0,1.56267921]
[1755190450942,0.13292175,118160.0,118150.0,1.64727781]
[1755190451530,0.13408316,118160.0,118150.0,1.64727781]
[1755190451943,0.13408316,118160.0,118150.0,1.56267921]
[1755190452447,0.13408316,118160.0,118150.0,1.64727781]
[1755190454037,0.13408316,118160.0,118150.0,2.00807781]
[1755190455038,0.04944141,118160.0,118150.0,2.17734981]
[1755190455549,0.04944141,118160.0,118150.0,1.4679906]
[1755190455752,0.04944141,118160.0,118150.0,2.17734981]
[1755190456447,0.7222706,118180.0,118160.0,0.1691775]
[1755190456639,0.7222706,118180.0,118170.0,1.37070098]
[1755190456835,0.63685519,118180.0,118170.0,1.21055074]
[1755190457040,0.70998519,118180.0,118170.0,1.21055074]
[1755190457835,0.71198519,118180.0,118170.0,1.21055074]
[1755190458943,0.56179459,118180.0,118170.0,1.21055074]
[1755190459250,0.71389207,118180.0,118170.0,1.21055074]
[1755190460553,0.36714207,118180.0,118170.0,0.70898738]
[1755190460850,0.56179459,118180.0,118170.0,1.21055074]
[1755190461556,0.71389207,118180.0,118170.0,1.21055074]
[1755190462052,0.36714207,118180.0,118170.0,1.29513494]
[1755190462240,0.21504459,118180.0,118170.0,1.29513494]
[1755190462447,0.13691459,118180.0,118170.0,1.29513494]
[1755190463158,0.13591459,118180.0,118170.0,0.70898738]
[1755190463452,0.29591459,118180.0,118170.0,1.29513494]
[1755190463951,0.13491459,118180.0,118170.0,1.29513494]
[1755190464650,0.05028,118180.0,118170.0,1.65593494]
[1755190464953,0.05028,118180.0,118170.0,1.47546832]
[1755190465450,0.002,118180.0,118170.0,1.64470832]
[1755190465650,0.002,118180.0,118170.0,1.47546832]
[1755190465846,0.05026,118180.0,118170.0,1.47546832]
[1755190467050,0.05026,118180.0,118170.0,1.47539742]
[1755190467752,0.05026,118180.0,118170.0,0.97383406]
[1755190467952,0.002,118180.0,118170.0,1.47539742]
[1755190468448,0.002,118180.0,118170.0,1.53026123]
[1755190468655,0.15213811,118190.0,118170.0,1.53018463]
[1755190468856,0.20039811,118190.0,118180.0,0.94694016]
[1755190469154,0.28501837,118190.0,118180.0,0.94694016]
[1755190469345,0.04826,118190.0,118180.0,0.94694016]
[1755190469550,0.20035821,118190.0,118180.0,0.94694016]
[1755190469751,0.20235821,118190.0,118180.0,0.94694016]
[1755190470549,0.20035821,118190.0,118180.0,0.94694016]
[1755190471054,0.63527821,118190.0,118180.0,0.94694016]
[1755190471249,0.63727821,118190.0,118180.0,0.94694016]
[1755190471451,0.63727821,118190.0,118180.0,0.86236336]
[1755190471651,0.63527821,118190.0,118180.0,0.86236336]
[1755190472647,0.63527821,118190.0,118180.0,0.50156336]
[1755190472846,0.71989131,118190.0,118180.0,0.34143928]
[1755190473051,0.71989131,118190.0,118180.0,1.19223928]
[1755190473356,0.71989131,118190.0,118180.0,1.17190606]
[1755190473557,0.5677931,118190.0,118180.0,1.17190606]
[1755190475146,0.1328731,118190.0,118180.0,1.25648286]
[1755190475658,0.1328731,118190.0,118180.0,1.61728286]
[1755190476653,0.04826,118190.0,118180.0,1.61728286]
[1755190477249,0.04826,118190.0,118180.0,1.2961768]
[1755190477460,0.04826,118190.0,118180.0,1.79774016]
[1755190477655,0.36743,118180.0,118150.0,0.4021245]
[1755190477859,0.48318,118160.0,118150.0,0.50156336]
[1755190478156,0.28834,118150.0,118140.0,0.01695955]
[1755190478360,0.95045931,118150.0,118140.0,1.36876291]
[1755190478548,0.58965931,118150.0,118140.0,1.25435704]
[1755190478748,0.58965931,118150.0,118140.0,1.55601973]
[1755190478749,0.13290175,118150.0,118140.0,1.55601973]
[1755190478948,0.23938017,118150.0,118140.0,1.65750933]
[1755190479152,0.15473842,118150.0,118140.0,2.01830933]
[1755190479553,0.15473842,118150.0,118140.0,2.02130933]
[1755190479854,0.10647842,118160.0,118140.0,2.10791003]
[1755190480061,0.04826,118160.0,118150.0,1.15117803]
[1755190480261,0.04826,118170.0,118160.0,0.0845909]
[1755190480449,0.15205799,118180.0,118160.0,2.08584153]
[1755190480654,0.2173,118180.0,118170.0,0.70577973]
[1755190480850,0.30193459,118180.0,118170.0,0.56256783]
[1755190481054,0.71993362,118180.0,118170.0,0.01692904]
[1755190481456,0.72073362,118180.0,118170.0,0.01692904]
[1755190481756,1.18802867,118180.0,118170.0,0.00743274]
[1755190481958,1.18802867,118180.0,118160.0,0.85192]
[1755190481959,0.48398,118170.0,118160.0,0.002]
[1755190482161,1.55055973,118170.0,118150.0,0.84996]
[1755190482360,1.55055973,118170.0,118140.0,0.0188841]
[1755190482361,0.48318,118150.0,118140.0,0.0188841]
[1755190482561,0.84398,118150.0,118140.0,0.8688041]
[1755190482751,0.84478,118150.0,118140.0,0.8668041]
[1755190482951,1.55055973,118150.0,118140.0,0.8667641]
[1755190483160,0.929411,118150.0,118140.0,0.8667641]
[1755190483362,0.928611,118150.0,118140.0,0.58259078]
[1755190483661,0.928611,118150.0,118140.0,0.01919287]
[1755190484065,0.928611,118150.0,118140.0,0.002]
[1755190484259,1.63519073,118150.0,118140.0,0.002]
[1755190484564,0.48318,118130.0,118120.0,0.01703856]
[1755190484862,0.84398,118130.0,118120.0,0.86679856]
[1755190485056,0.88585933,118130.0,118120.0,0.86679856]
[1755190485257,0.97050108,118130.0,118120.0,0.86679856]
[1755190485456,1.12266101,118130.0,118120.0,0.86679856]
[1755190485763,1.12266101,118130.0,118120.0,0.86979856]
[1755190486163,1.12266101,118130.0,118120.0,0.87479856]
[1755190486360,0.97050108,118130.0,118120.0,0.87479856]
[1755190486561,0.21199175,118130.0,118120.0,2.02599809]
[1755190486762,0.13290175,118130.0,118120.0,2.02599809]
[1755190486960,0.24611136,118140.0,118130.0,0.0846126]
[1755190487157,0.24611136,118140.0,118130.0,0.79039233]
[1755190487759,0.20035094,118140.0,118130.0,1.15119233]
[1755190488659,0.20035094,118140.0,118130.0,1.16680609]
[1755190488966,0.20035094,118140.0,118130.0,1.12740137]
[1755190489167,0.20035094,118140.0,118130.0,0.96723754]
[1755190489669,0.20035094,118140.0,118130.0,0.6207086]
[1755190489857,0.20035094,118140.0,118130.0,1.32648833]
[1755190490164,0.15209094,118140.0,118130.0,1.32728833]
[1755190490666,0.15209094,118140.0,118130.0,1.20120169]
[1755190490963,0.15209094,118140.0,118130.0,1.37049769]
[1755190491363,0.15209094,118140.0,118130.0,1.36969769]
[1755190491559,0.36939094,118140.0,118130.0,2.00663233]
[1755190491758,0.04826,118150.0,118140.0,0.0846021]
[1755190492062,0.12428247,118150.0,118140.0,1.08349698]
[1755190492367,0.36436247,118150.0,118140.0,1.16810278]
[1755190492966,0.36436247,118150.0,118140.0,1.16910278]
[1755190493868,0.12428247,118150.0,118140.0,1.16910278]
[1755190494069,0.12428247,118150.0,118140.0,1.17210278]
[1755190496874,0.55208247,118150.0,118140.0,1.17210278]
[1755190497063,0.55208247,118150.0,118140.0,0.46632305]
[1755190497264,0.55208247,118150.0,118140.0,1.17210278]
[1755190498479,0.47606,118150.0,118140.0,1.17210278]
[1755190498667,0.58249145,118150.0,118140.0,1.17210278]
[1755190499174,0.58024145,118150.0,118140.0,1.17210328]
[1755190499472,0.58024145,118150.0,118140.0,1.08749698]
[1755190499670,0.58024145,118150.0,118140.0,1.17210328]
[1755190499872,0.58024145,118150.0,118140.0,1.08749698]
[1755190500072,0.58024145,118150.0,118140.0,1.17210358]
[1755190500264,0.58024145,118150.0,118140.0,0.38171725]
[1755190500463,0.6656832,118150.0,118140.0,1.23051725]
[1755190500670,0.9960958,118150.0,118140.0,0.02091725]
[1755190500864,0.92005175,118150.0,118140.0,0.86963725]
[1755190501064,1.02652412,118150.0,118140.0,0.86963725]
[1755190501865,1.02572412,118150.0,118140.0,0.86963725]
[1755190502767,1.02572412,118150.0,118140.0,0.869071]
[1755190503069,1.02572412,118150.0,118140.0,0.020351]
[1755190503266,1.02652412,118150.0,118140.0,0.868871]
[1755190504264,1.73230385,118150.0,118120.0,0.01703856]
[1755190504466,0.91069219,118130.0,118120.0,0.86547856]
[1755190504668,0.83541,118130.0,118120.0,0.8484]
[1755190504965,0.83541,118130.0,118120.0,0.82805622]
[1755190505167,0.92005175,118130.0,118120.0,0.82805622]
[1755190505372,1.07214269,118130.0,118120.0,0.82805622]
[1755190505671,1.07214269,118130.0,118120.0,0.001]
[1755190505878,1.77792242,118130.0,118120.0,0.001]
[1755190506174,1.90162665,118130.0,118120.0,0.001]
[1755190506369,0.47381,118120.0,118110.0,0.01708385]
[1755190506565,1.6468729,118120.0,118100.0,0.84832]
[1755190506768,1.3595029,118120.0,118090.0,0.3608]
[1755190507072,0.47381,118100.0,118090.0,1.38521]
[1755190507272,0.47381,118100.0,118090.0,1.40215311]
[1755190507580,0.58029317,118100.0,118090.0,0.91143311]
[1755190507770,0.55848759,118100.0,118090.0,0.91143311]
[1755190508074,0.66488484,118100.0,118090.0,0.91143311]
[1755190508280,0.55848759,118100.0,118090.0,0.86818311]
[1755190508873,0.55848759,118100.0,118090.0,0.91143311]
[1755190509074,0.55948759,118100.0,118090.0,0.91143311]
[1755190509269,0.56048759,118100.0,118090.0,0.91843311]